fUST/lending_fUST_20251117
["ID","MTS","AMOUNT","RATE_DAILY","PERIOD"]
[394169777,1763343032206,-500.0,0.00038339,7]
[394169778,1763343032216,-500.0,0.00038339,7]
[394169779,1763343032226,-500.0,0.00038339,7]
[394169780,1763343032237,-500.0,0.00038339,7]
[394169781,1763343032246,-500.0,0.00038339,7]
[394169782,1763343032255,-500.0,0.00038339,7]
[394169783,1763343032266,-500.0,0.00038339,7]
[394169784,1763343032275,-500.0,0.00038339,7]
[394169785,1763343032286,-500.0,0.00038339,7]
[394169786,1763343032295,-386.68708538,0.00038339,7]
[394169787,1763343032305,-500.0,0.00038339,7]
[394169788,1763343032314,-500.0,0.00038339,7]
[394169789,1763343032324,-500.0,0.00038339,7]
[394169790,1763343032333,-500.0,0.00038339,7]
[394169791,1763343032344,-500.0,0.00038339,7]
[394169792,1763343032353,-500.0,0.00038339,7]
[394169793,1763343032362,-500.0,0.00038339,7]
[394169794,1763343032372,-500.0,0.00038339,7]
[394169795,1763343032381,-500.0,0.00038339,7]
[394169796,1763343032391,-500.0,0.00038339,7]
[394169797,1763343032400,-500.0,0.00038339,7]
[394169798,1763343032409,-500.0,0.00038339,7]
[394169799,1763343032419,-369.60300744,0.00038339,7]
[394169800,1763343032428,-6610.50885131,0.0003834,2]
[394169801,1763343032440,-33449.98305991,0.0003834,2]
[394169802,1763343032452,-9536.9688951,0.0003834,2]
[394169803,1763343032463,-1123.02642622,0.0003834,2]
[394169804,1763343032474,-519.86772207,0.0003834,2]
[394169814,1763343037792,-5370.1538967,0.0003834,2]
[394169815,1763343037801,-500.0,0.00038368,2]
[394169817,1763343037811,-150.0,0.00038606,2]
[394169819,1763343037820,-7500.42518838,0.0003918,120]
[394169821,1763343037829,-500.0,0.00039532,5]
[394169823,1763343037839,-502.5065032,0.00039532,5]
[394169825,1763343037848,-500.0,0.00039532,5]
[394169827,1763343037858,-500.0,0.00039532,5]
[394169829,1763343037867,-500.0,0.00039532,3]
[394169831,1763343037876,-321.07791867,0.00039558,2]
[394169833,1763343037885,-151.0,0.00039558,15]
[394169835,1763343037894,-151.0,0.00039558,2]
[394169837,1763343037903,-152.30523375,0.00039558,15]
[394169839,1763343037913,-151.99056464,0.00039558,2]
[394169841,1763343037922,-151.0,0.00039558,15]
[394169843,1763343037931,-151.0,0.00039558,15]
[394169846,1763343037941,-500.0,0.00039659,15]
[394169847,1763343037950,-151.0,0.00039659,15]
[394169849,1763343037960,-500.0,0.00039659,15]
[394169852,1763343037969,-151.0,0.00039659,15]
[394169853,1763343037978,-202.23060394,0.0003966,2]
[394169856,1763343037988,-151.0,0.00039695,15]
[394169857,1763343037997,-151.0,0.00039695,15]
[394169859,1763343038006,-151.0,0.00039695,15]
[394169861,1763343038015,-498.0,0.00039752,5]
[394169864,1763343038033,-500.0,0.00039796,15]
[394169866,1763343038043,-151.0,0.00039796,15]
[394169868,1763343038052,-500.0,0.00039796,15]
[394169871,1763343038062,-151.0,0.00039796,15]
[394169872,1763343038072,-160.0,0.00039889,2]
[394169874,1763343038081,-339.0,0.0003989,120]
[394169876,1763343038091,-512.10080427,0.00039932,7]
[394169879,1763343038101,-571.43422759,0.00039932,31]
[394169881,1763343038110,-500.0,0.00039932,31]
[394169883,1763343038120,-500.0,0.00039932,7]
[394169885,1763343038129,-288.61872909,0.00039932,31]
[394169887,1763343038139,-174.0,0.00039933,15]
[394169889,1763343038148,-500.0,0.00039933,15]
[394169891,1763343038157,-151.0,0.00039933,15]
[394169893,1763343038167,-5000.00299029,0.0004,90]
[394169894,1763343038177,-500.0,0.0004007,15]
[394169895,1763343038187,-151.0,0.0004007,15]
[394169897,1763343038198,-513.64025914,0.00040156,5]
[394169899,1763343038209,-507.09005686,0.00040156,5]
[394169901,1763343038219,-502.15661401,0.00040156,5]
[394169903,1763343038229,-501.9597338,0.00040156,5]
[394169905,1763343038239,-501.47392707,0.00040156,5]
[394169906,1763343038249,-267.28674594,0.00040156,5]
[394169907,1763343038259,-517.26996116,0.00040156,5]
[394169908,1763343038268,-500.0,0.00040156,5]
[394169909,1763343038278,-500.0,0.00040207,15]
[394169910,1763343038287,-151.0,0.00040207,15]
[394169911,1763343038297,-500.0,0.00040261,5]
[394169912,1763343038306,-500.0,0.00040344,15]
[394169913,1763343038316,-245.0,0.00040344,15]
[394169914,1763343038326,-260.0,0.00040437,2]
[394169915,1763343038335,-500.0,0.00040481,15]
[394169916,1763343038345,-469.85779717,0.00040618,15]
[394169917,1763343038355,-200.0,0.00040662,5]
[394169918,1763343038365,-300.0,0.00040662,5]
[394169919,1763343038374,-560.0,0.00040662,5]
[394169920,1763343038390,-203.0,0.00040662,5]
[394169921,1763343038399,-1154.0,0.00040663,5]
[394169922,1763343038409,-567.26106575,0.00040867,5]
[394169923,1763343038418,-360.0,0.00040985,2]
[394169924,1763343038427,-613.0,0.00041,2]
[394169925,1763343038437,-152.57,0.0004108,10]
[394169926,1763343038447,-76685.2309078,0.0004109,3]
[394169927,1763343038457,-532.85281234,0.0004109,3]
[394169928,1763343038466,-500.0,0.00041096,31]
[394169929,1763343038476,-500.0,0.00041096,31]
[394169930,1763343038485,-500.0,0.00041096,31]
[394169931,1763343038495,-500.0,0.00041096,31]
[394169932,1763343038508,-500.0,0.00041096,31]
[394169933,1763343038518,-500.0,0.00041096,31]
[394169934,1763343038528,-500.0,0.00041096,31]
[394169935,1763343038538,-500.0,0.00041096,31]
[394169936,1763343038548,-500.0,0.00041096,31]
[394169937,1763343038557,-500.0,0.00041096,31]
[394169938,1763343038567,-500.0,0.00041096,31]
[394169939,1763343038576,-500.0,0.00041096,31]
[394169940,1763343038586,-500.0,0.00041096,31]
[394169941,1763343038595,-401.34356883,0.00041096,31]
[394169942,1763343038605,-500.0,0.00041096,31]
[394169943,1763343038615,-500.0,0.00041096,31]
[394169944,1763343038625,-500.0,0.00041096,31]
[394169945,1763343038635,-500.0,0.00041096,31]
[394169946,1763343038649,-500.0,0.00041096,31]
[394169947,1763343038659,-500.0,0.00041096,31]
[394169948,1763343038668,-500.0,0.00041096,31]
[394169949,1763343038678,-500.0,0.00041096,31]
[394169950,1763343038688,-500.0,0.00041096,31]
[394169951,1763343038698,-500.0,0.00041096,31]
[394169952,1763343038708,-500.0,0.00041096,31]
[394169953,1763343038718,-391.36275151,0.00041096,31]
[394169954,1763343038727,-500.0,0.00041096,31]
[394169955,1763343038737,-500.0,0.00041096,31]
[394169956,1763343038746,-500.0,0.00041096,31]
[394169957,1763343038757,-500.0,0.00041096,31]
[394169958,1763343038767,-500.0,0.00041096,31]
[394169959,1763343038777,-500.0,0.00041096,31]
[394169960,1763343038787,-4833.1,0.000411,14]
[394169961,1763343038796,-517.69495458,0.00041107,10]
[394169962,1763343038806,-500.0,0.00041107,10]
[394169963,1763343038816,-460.0,0.00041533,2]
[394169964,1763343038825,-150.0,0.00041576,2]
[394169965,1763343038836,-1000.0,0.00041655,10]
[394169966,1763343038846,-160.98056466,0.00041682,10]
[394169967,1763343038855,-159.24,0.000418,14]
[394169968,1763343038867,-270.43,0.000418,30]
[394169969,1763343038877,-366.0,0.0004189,120]
[394169970,1763343038887,-683.32266703,0.00042081,2]
[394169971,1763343038897,-1594.80703105,0.00042203,10]
[394169972,1763343038907,-286.998615,0.00043,120]
[394169973,1763343038918,-321.07791867,0.00043004,2]
[394169974,1763343038928,-288.0,0.00043461,5]
[394169975,1763343038938,-356.5273684,0.0004389,120]
[394169976,1763343038947,-150.0,0.00044546,2]
[394169977,1763343038957,-321.07791867,0.00046449,2]
[394169978,1763343038967,-150.0,0.00047516,2]
[394169979,1763343038977,-1338.11138304,0.00049,60]
[394169980,1763343038987,-500.0,0.00049315,120]
[394169981,1763343038996,-500.0,0.00049315,120]
[394169982,1763343039006,-500.0,0.00049315,2]
[394169983,1763343039016,-1206.63,0.00049315,3]
[394169984,1763343039026,-500.0,0.00049315,120]
[394169985,1763343039153,-716.16,0.00049315,120]
[394169986,1763343039162,-500.0,0.00049315,7]
[394169987,1763343039172,-390.05975324,0.00049587,7]
[394169988,1763343039183,-500.0,0.00049587,7]
[394169989,1763343039192,-500.0,0.00049587,120]
[394169990,1763343039206,-151.0,0.00049587,120]
[394169991,1763343039216,-151.0,0.00049587,120]
[394169992,1763343039226,-500.0,0.00049587,120]
[394169993,1763343039236,-151.0,0.00049587,120]
[394169994,1763343039246,-500.0,0.00049587,120]
[394169995,1763343039255,-500.0,0.00049587,120]
[394169996,1763343039265,-500.0,0.00049587,120]
[394169997,1763343039276,-500.0,0.00049587,120]
[394169998,1763343039286,-441.61090735,0.00049587,120]
[394169999,1763343039296,-500.0,0.00049587,120]
[394170000,1763343039306,-151.0,0.00049587,120]
[394170001,1763343039316,-500.0,0.00049587,7]
[394170002,1763343039326,-554.83,0.00049587,2]
[394170003,1763343039338,-500.0,0.00049587,2]
[394170004,1763343039357,-500.0,0.00049589,120]
[394170005,1763343039367,-440.88010213,0.00049589,2]
[394170006,1763343039377,-1206.63,0.00049589,3]
[394170007,1763343039386,-716.16,0.00049589,120]
[394170008,1763343039396,-500.0,0.00049589,7]
[394170009,1763343039405,-76685.2309078,0.0004969,4]
[394170010,1763343039415,-532.85281234,0.0004969,4]
[394170011,1763343039425,-186.57123857,0.0004969,50]
[394170012,1763343039434,-27304.88305689,0.000497,31]
[394170013,1763343039443,-500.0,0.00049724,120]
[394170014,1763343039453,-151.0,0.00049724,120]
[394170015,1763343039462,-151.0,0.00049724,120]
[394170016,1763343039472,-500.0,0.00049724,120]
[394170017,1763343039482,-151.0,0.00049724,120]
[394170018,1763343039492,-500.0,0.00049724,120]
[394170019,1763343039501,-500.72302965,0.00049724,120]
[394170020,1763343039511,-151.0,0.00049724,120]
[394170021,1763343039520,-453.0,0.00049861,120]
[394170022,1763343039529,-151.0,0.00049861,120]
[394170023,1763343039539,-245.0,0.00049861,120]
[394170024,1763343039548,-500.0,0.00049861,120]
[394170025,1763343039558,-154.30840794,0.00049861,120]
[394170026,1763343039568,-500.0,0.00049861,120]
[394170027,1763343039577,-151.0,0.00049861,120]
[394170028,1763343039587,-500.0,0.00049861,7]
[394170029,1763343039596,-554.83,0.00049861,2]
[394170030,1763343039606,-500.0,0.00049862,2]
[394170031,1763343039616,-500.0,0.00049863,120]
[394170032,1763343039625,-1206.63,0.00049863,3]
[394170033,1763343039635,-716.16,0.00049863,120]
[394170034,1763343039644,-500.0,0.00049863,7]
[394170035,1763343039654,-321.07791867,0.00049895,2]
[394170036,1763343039663,-16530.21119455,0.0004999,2]
[394170037,1763343039673,-76685.2309078,0.0004999,4]
[394170039,1763343039682,-532.85281234,0.0004999,4]
[394170041,1763343039691,-151.0,0.00049998,120]
[394170042,1763343039701,-500.0,0.00049998,120]
[394170044,1763343039710,-395.43302852,0.00049998,120]
[394170046,1763343039719,-151.0,0.00049998,120]
[394170047,1763343039729,-4833.1,0.0005,14]
[394170048,1763343039738,-151.0,0.00050135,120]
[394170049,1763343039747,-500.0,0.00050135,120]
[394170050,1763343039756,-151.0,0.00050135,120]
[394170051,1763343039766,-500.0,0.00050135,7]
[394170052,1763343039775,-554.83,0.00050135,2]
[394170053,1763343039784,-498.25017106,0.00050136,120]
[394170054,1763343039793,-1206.63,0.00050136,3]
[394170055,1763343039803,-716.16,0.00050136,120]
[394170056,1763343039812,-500.0,0.00050136,7]
[394170058,1763343039821,-151.0,0.00050136,120]
[394170060,1763343039830,-245.0,0.00050272,120]
[394170062,1763343039839,-500.0,0.00050272,120]
[394170063,1763343039849,-245.0,0.00050272,120]
[394170064,1763343039859,-202.43283454,0.00050334,2]
[394170065,1763343039867,-157.96213312,0.00050409,120]
[394170066,1763343039877,-500.0,0.00050409,7]
[394170067,1763343039886,-554.83,0.00050409,2]
[394170068,1763343039895,-1206.63,0.0005041,3]
[394170069,1763343039904,-716.16,0.0005041,120]
[394170070,1763343039914,-500.0,0.0005041,7]
[394170071,1763343039923,-150.0,0.00050485,2]
[394170072,1763343039934,-159.24,0.000505,14]
[394170073,1763343039944,-270.43,0.000506,30]
[394170074,1763343039955,-317.75069692,0.00050683,7]
[394170075,1763343039965,-554.83,0.00050683,2]
[394170076,1763343039975,-1206.63,0.00050684,3]
[394170077,1763343039985,-716.16,0.00050684,120]
[394170078,1763343039994,-500.0,0.00050684,7]
[394170079,1763343040004,-500.0,0.00050873,10]
[394170080,1763343040014,-500.0,0.00050873,10]
[394170081,1763343040024,-500.92675252,0.00050873,10]
[394170082,1763343040034,-500.0,0.00050873,10]
[394170083,1763343040045,-502.77937304,0.00050873,10]
[394170084,1763343040056,-500.0,0.00050873,10]
[394170085,1763343040066,-501.26527799,0.00050873,10]
[394170086,1763343040075,-370.03516788,0.00050873,10]
[394170087,1763343040086,-502.66529717,0.00050873,10]
[394170088,1763343040097,-231.54804744,0.00050873,10]
[394170089,1763343040107,-507.79347609,0.00050873,10]
[394170090,1763343040117,-500.0,0.00050873,10]
[394170091,1763343040129,-501.07386946,0.00050873,10]
[394170092,1763343040138,-2000.0,0.00050885,21]
[394170093,1763343040148,-76685.2309078,0.0005089,4]
[394170094,1763343040158,-532.85281234,0.0005089,4]
[394170095,1763343040168,-45386.58350225,0.000509,30]
[394170096,1763343040177,-554.83,0.00050957,2]
[394170097,1763343040186,-626.73,0.00050958,2]
[394170098,1763343040197,-1206.63,0.00050958,3]
[394170099,1763343040209,-716.16,0.00050958,120]
[394170100,1763343040219,-303.7,0.00050958,7]
[394170101,1763343040228,-151.0,0.00051,25]
[394170102,1763343040238,-875.4,0.00051,14]
[394170103,1763343040247,-554.83,0.00051231,2]
[394170104,1763343040256,-1206.63,0.00051232,3]
[394170105,1763343040266,-716.16,0.00051232,120]
[394170106,1763343040276,-507.77053588,0.00051421,10]
[394170107,1763343040286,-1000.0,0.00051421,10]
[394170108,1763343040295,-502.92114223,0.00051421,10]
[394170109,1763343040305,-500.0,0.00051421,10]
[394170110,1763343040314,-1000.0,0.00051421,10]
[394170111,1763343040323,-76685.2309078,0.0005143,4]
[394170112,1763343040333,-2131.41124936,0.0005143,4]
[394170113,1763343040342,-189507.4479,0.0005144,30]
[394170114,1763343040351,-554.83,0.00051505,2]
[394170115,1763343040361,-1206.63,0.00051506,3]
[394170116,1763343040370,-716.16,0.00051506,120]
[394170117,1763343040379,-186.57,0.000517,53]
[394170118,1763343040389,-554.83,0.00051779,2]
[394170119,1763343040398,-1206.63,0.0005178,3]
[394170120,1763343040408,-716.16,0.0005178,120]
[394170121,1763343040417,-1041.04800509,0.00051968,10]
[394170122,1763343040426,-1500.0,0.00051968,10]
[394170123,1763343040435,-554.83,0.00052053,2]
[394170124,1763343040444,-1206.63,0.00052054,3]
[394170125,1763343040454,-716.16,0.00052054,120]
[394170126,1763343040463,-151.0,0.000523,22]
[394170127,1763343040473,-532.85281234,0.00052318,4]
[394170128,1763343040483,-554.83,0.00052327,2]
[394170129,1763343040492,-1206.63,0.00052328,3]
[394170130,1763343040502,-716.16,0.00052328,120]
[394170131,1763343040511,-4833.1,0.000524,14]
[394170132,1763343040520,-2000.0,0.00052516,10]
[394170133,1763343040529,-151.0,0.000526,22]
[394170134,1763343040539,-554.83,0.00052601,2]
[394170135,1763343040547,-1206.63,0.00052602,3]
[394170136,1763343040557,-716.16,0.00052602,120]
[394170137,1763343040566,-500.0,0.00052871,10]
[394170138,1763343040575,-554.83,0.00052875,2]
[394170139,1763343040584,-1206.63,0.00052876,3]
[394170140,1763343040594,-716.16,0.00052876,120]
[394170141,1763343040603,-516.27196384,0.00053064,10]
[394170142,1763343040612,-554.83,0.00053149,2]
[394170143,1763343040621,-1206.63,0.0005315,3]
[394170144,1763343040631,-716.16,0.0005315,120]
[394170145,1763343040640,-151.0,0.00053157,120]
[394170146,1763343040649,-875.4,0.000532,14]
[394170147,1763343040658,-3014.33594257,0.0005333,120]
[394170148,1763343040668,-321.07791867,0.0005334,2]
[394170149,1763343040678,-1000.0,0.00053419,10]
[394170150,1763343040687,-554.83,0.00053423,2]
[394170151,1763343040697,-1206.63,0.00053424,3]
[394170152,1763343040706,-716.16,0.00053424,120]
[394170153,1763343040715,-4262.82249872,0.0005343,4]
[394170154,1763343040724,-340178.553,0.0005344,30]
[394170155,1763343040734,-151.0,0.0005344,120]
[394170156,1763343040743,-151.0,0.0005344,120]
[394170157,1763343040752,-151.0,0.0005344,120]
[394170158,1763343040762,-151.0,0.0005344,120]
[394170159,1763343040771,-151.0,0.0005344,120]
[394170160,1763343040781,-599.346579,0.0005344,120]
[394170161,1763343040790,-599.346579,0.0005344,120]
[394170162,1763343040799,-599.346579,0.0005344,120]
[394170163,1763343040809,-599.346579,0.0005344,120]
[394170164,1763343040818,-185.947501,0.0005344,120]
[394170165,1763343040827,-185.947501,0.0005344,120]
[394170166,1763343040836,-185.947501,0.0005344,120]
[394170167,1763343040845,-185.947501,0.0005344,120]
[394170168,1763343040854,-150.0,0.00053455,2]
[394170169,1763343040863,-554.83,0.00053697,2]
[394170170,1763343040872,-1206.63,0.00053698,3]
[394170171,1763343040882,-716.16,0.00053698,120]
[394170172,1763343040891,-151.0,0.000537,22]
[394170173,1763343040900,-186.57,0.000537,56]
[394170174,1763343040909,-1500.0,0.00053967,10]
[394170175,1763343040918,-554.83,0.00053971,2]
[394170176,1763343040927,-1206.63,0.00053972,3]
[394170177,1763343040937,-716.16,0.00053972,120]
[394170178,1763343040952,-270.43,0.00054,30]
[394170179,1763343040961,-554.83,0.00054245,2]
[394170180,1763343040970,-1206.63,0.00054246,3]
[394170181,1763343040980,-716.16,0.00054246,120]
[394170182,1763343040989,-1500.0,0.00054515,10]
[394170183,1763343040999,-554.83,0.00054519,2]
[394170184,1763343041009,-1206.63,0.0005452,3]
[394170185,1763343041018,-716.16,0.0005452,120]
[394170186,1763343041027,-186.57,0.000547,57]
[394170187,1763343041037,-554.83,0.00054793,2]
[394170188,1763343041046,-1206.63,0.00054794,3]
[394170189,1763343041055,-716.16,0.00054794,120]
[394170190,1763343041064,-605.21044779,0.00054794,120]
[394170191,1763343041074,-1065.70562468,0.0005487,4]
[394170192,1763343041083,-85337.37818966,0.0005488,120]
[394170193,1763343041093,-442.21745279,0.000549,120]
[394170194,1763343041102,-217.53502908,0.00054945,2]
[394170195,1763343041111,-391.56305234,0.00054945,2]
[394170196,1763343041121,-192.33080541,0.00054945,2]
[394170197,1763343041131,-346.19544974,0.00054945,2]
[394170198,1763343041140,-163.7173142,0.00054945,2]
[394170199,1763343041220,-654.86925678,0.00054945,2]
[394170200,1763343041232,-1473.45582776,0.00054945,2]
[394170201,1763343041244,-168.20568769,0.00054945,2]
[394170202,1763343041253,-672.82275077,0.00054945,2]
[394170203,1763343041274,-1513.85118923,0.00054945,2]
[394170204,1763343041284,-2691.29100308,0.00054945,2]
[394170205,1763343041294,-182.9139359,0.00054945,2]
[394170206,1763343041304,-731.6557436,0.00054945,2]
[394170207,1763343041314,-1646.22542311,0.00054945,2]
[394170208,1763343041324,-396.6147581,0.00054945,2]
[394170209,1763343041334,-532.85281234,0.0005497,4]
[394170210,1763343041343,-150.0,0.00054973,7]
[394170211,1763343041353,-1000.0,0.00054973,15]
[394170212,1763343041363,-304.664982,0.0005498,120]
[394170213,1763343041373,-304.664982,0.0005498,120]
[394170214,1763343041383,-304.664982,0.0005498,120]
[394170215,1763343041394,-304.664982,0.0005498,120]
[394170216,1763343041404,-467.326026,0.0005498,120]
[394170217,1763343041413,-467.326026,0.0005498,120]
[394170218,1763343041423,-151.0,0.0005498,30]
[394170219,1763343041433,-467.326026,0.0005498,120]
[394170220,1763343041443,-467.326026,0.0005498,120]
[394170221,1763343041452,-151.0,0.0005498,120]
[394170222,1763343041463,-208.44253,0.0005498,120]
[394170223,1763343041473,-151.0,0.0005498,120]
[394170224,1763343041483,-208.44253,0.0005498,120]
[394170225,1763343041493,-10000.0,0.0005498,120]
[394170226,1763343041503,-151.0,0.0005498,120]
[394170227,1763343041512,-208.44253,0.0005498,120]
[394170228,1763343041522,-10000.0,0.0005498,120]
[394170229,1763343041532,-208.44253,0.0005498,120]
[394170230,1763343041541,-151.0,0.0005498,120]
[394170231,1763343041551,-939.83922691,0.0005498,120]
[394170232,1763343041569,-9060.16077309,0.0005498,120]
[394170233,1763343041578,-151.0,0.0005498,7]
[394170234,1763343041588,-10000.0,0.0005498,120]
[394170235,1763343041598,-10000.0,0.0005498,120]
[394170236,1763343041607,-6525.86397086,0.0005498,120]
[394170237,1763343041620,-3474.13602914,0.0005498,120]
[394170238,1763343041629,-159.829767,0.0005498,120]
[394170239,1763343041638,-1149.21988667,0.0005498,120]
[394170240,1763343041649,-8850.78011333,0.0005498,120]
[394170241,1763343041659,-151.0,0.0005498,120]
[394170242,1763343041669,-4077.76492343,0.0005498,120]
[394170243,1763343041680,-1839.38992111,0.0005498,120]
[394170244,1763343041692,-4082.84515546,0.0005498,120]
[394170245,1763343041701,-9493.61212781,0.0005498,120]
[394170246,1763343041712,-383.21001361,0.0005498,120]
[394170247,1763343041723,-123.17785858,0.0005498,120]
[394170248,1763343041732,-10000.0,0.0005498,120]
[394170249,1763343041742,-151.0,0.0005498,120]
[394170250,1763343041751,-1604.99151973,0.0005498,120]
[394170251,1763343041761,-313.350394,0.0005498,120]
[394170252,1763343041770,-313.350394,0.0005498,120]
[394170253,1763343041779,-298.585852,0.0005498,120]
[394170254,1763343041789,-313.350394,0.0005498,120]
[394170255,1763343041798,-313.350394,0.0005498,120]
[394170256,1763343041807,-151.0,0.0005498,120]
[394170257,1763343041816,-151.0,0.0005498,120]
[394170258,1763343041825,-151.0,0.0005498,120]
[394170259,1763343041835,-151.0,0.0005498,120]
[394170260,1763343041844,-151.0,0.0005498,120]
[394170261,1763343041852,-151.0,0.0005498,120]
[394170262,1763343041866,-151.0,0.0005498,120]
[394170263,1763343041875,-151.0,0.0005498,120]
[394170264,1763343041884,-348.159928,0.0005498,120]
[394170265,1763343041894,-151.0,0.0005498,120]
[394170266,1763343041903,-348.159928,0.0005498,120]
[394170267,1763343041912,-348.159928,0.0005498,120]
[394170268,1763343041922,-151.0,0.0005498,120]
[394170269,1763343041933,-232.04368315,0.0005498,120]
[394170270,1763343041949,-914.85,0.0004968,30]
[394170283,1763343046406,-126.73,0.0004968,30]
[394170284,1763343046416,-762.89,0.0005143,10]
[394170285,1763343046427,-116.11624485,0.0005498,120]
[394170286,1763343046436,-151.0,0.0005498,120]
[394170287,1763343046446,-151.0,0.0005498,120]
[394170288,1763343046455,-227.4969,0.0005498,120]
[394170289,1763343046465,-227.4969,0.0005498,120]
[394170290,1763343046474,-227.4969,0.0005498,120]
[394170291,1763343046483,-227.4969,0.0005498,120]
[394170292,1763343046493,-151.0,0.0005498,120]
[394170293,1763343046502,-200.2717,0.0005498,120]
[394170294,1763343046511,-200.2717,0.0005498,120]
[394170295,1763343046521,-200.2717,0.0005498,120]
[394170296,1763343046531,-200.2717,0.0005498,120]
[394170297,1763343046541,-15015.85904819,0.00055,30]
[394170298,1763343046553,-21438.45717964,0.00055,30]
[394170300,1763343093324,2024.0,0.00038333,20]
[394170301,1763343122524,424.0,0.00035,2]
[394170305,1763343197575,150.0,0.0003272,2]
[394170315,1763343237695,1010.22775088,0.00035,2]
[394170327,1763343287888,218.0,0.00035,120]
[394170333,1763343409709,2003.0,0.00035,2]
[394170334,1763343453348,150.0,0.00033154,2]
[394170337,1763343964514,150.0,0.00034319,2]
[394170339,1763344029863,150.0,0.00034316,2]
[394170340,1763344045126,-1244.02505713,0.00038368,4]
[394170341,1763344045145,-164.82875739,0.0004,120]
[394170342,1763344045166,-156.573303,0.00041582,31]
[394170343,1763344045186,-156.573303,0.0004161,31]
[394170344,1763344045204,-162.29,0.0004292,12]
[394170345,1763344045222,-374.2507572,0.0004322,30]
[394170400,1763344232039,-625.0,0.00038,20]
[394170401,1763344232048,-17.07242822,0.00038332,20]
[394170402,1763344232058,-132.92757178,0.00038332,20]
[394170403,1763344232067,-150.0,0.00039999,90]
[394170404,1763344232077,-6.1923403,0.00042819,2]
[394170405,1763344232087,-390.65458869,0.00042819,2]
[394170406,1763344232096,-150.0,0.00042919,12]
[394170407,1763344232105,-1077.2728,0.0004322,30]
[394170408,1763344232113,-150.0,0.0004346,5]
[394170409,1763344232122,-293.01839375,0.00044167,120]
[394170410,1763344232131,-341.1276363,0.00044267,2]
[394170411,1763344232140,-379.1990289,0.00045064,30]
[394170413,1763344232149,-300.0,0.0004811,90]
[394170414,1763344232158,-308.7,0.00048219,120]
[394170415,1763344232166,-207.38357784,0.00048403,14]
[394170416,1763344232175,-400.0,0.00048932,100]
[394170418,1763344232183,-150.0,0.00048999,60]
[394170420,1763344232192,-500.0,0.00049205,120]
[394170422,1763344232201,-550.0,0.00049314,5]
[394170424,1763344232209,-1000.0,0.00049315,2]
[394170425,1763344232218,-349.54120308,0.00049315,120]
[394170426,1763344232228,-512.31636794,0.00049315,120]
[394170427,1763344232237,-1000.0,0.00049315,2]
[394170428,1763344232246,-500.0,0.00049315,7]
[394170429,1763344232255,-621.74,0.00049315,2]
[394170430,1763344232264,-500.0,0.00049315,120]
[394170431,1763344232273,-500.0,0.00049315,2]
[394170432,1763344232282,-323.63663172,0.00049315,2]
[394170433,1763344232290,-2243.50651657,0.00049489,2]
[394170437,1763344232354,-1518.48024416,0.00049489,2]
[394170673,1763344237880,-530472.29137222,0.00049489,2]
[394170693,1763344255595,5936.0,0.00025,2]
[394170694,1763344404492,333.3984728,0.00038374,120]
[394170696,1763344477437,150.0,0.0003266,2]
[394170697,1763344545093,150.0,0.00032626,2]
[394170698,1763344609349,150.0,0.00032677,2]